[Event "*** Titled Tuesday Blitz"]
[Site "Chess.com"]
[Date "2021.03.02"]
[Round "4"]
[White "DenisQ"]
[Black "ChristopherYoo"]
[Result "1/2-1/2"]
[WhiteElo "2656"]
[BlackElo "2897"]
[TimeControl "180+1"]
[EndTime "10:40:58 PST"]
[Termination "Game drawn - insufficient material"]

1. Nf3 {[%clk 0:03:00.9]} 1... Nf6 {[%clk 0:02:59.3]} 2. c4 {[%clk 0:03:00.6]}
2... e6 {[%clk 0:02:59.2]} 3. Nc3 {[%clk 0:03:00.6]} 3... d5 {[%clk 0:02:58.8]}
4. d4 {[%clk 0:03:00.6]} 4... dxc4 {[%clk 0:02:59]} 5. e3 {[%clk 0:02:59.5]}
5... a6 {[%clk 0:02:58.6]} 6. a4 {[%clk 0:02:55.9]} 6... c5 {[%clk 0:02:53.6]}
7. Bxc4 {[%clk 0:02:55.6]} 7... Nc6 {[%clk 0:02:52.7]} 8. dxc5 {[%clk
0:02:54.9]} 8... Qxd1+ {[%clk 0:02:50.7]} 9. Kxd1 {[%clk 0:02:54.4]} 9... Bxc5
{[%clk 0:02:50.3]} 10. Ke2 {[%clk 0:02:54]} 10... b6 {[%clk 0:02:49.7]} 11. Rd1
{[%clk 0:02:45.4]} 11... Bb7 {[%clk 0:02:49.6]} 12. Bd2 {[%clk 0:02:45.1]} 12...
Ke7 {[%clk 0:02:43.4]} 13. Rac1 {[%clk 0:02:44.3]} 13... Rhd8 {[%clk 0:02:37.6]}
14. Be1 {[%clk 0:02:42.6]} 14... Rac8 {[%clk 0:02:28]} 15. Rxd8 {[%clk
0:02:41.5]} 15... Rxd8 {[%clk 0:02:27.8]} 16. Bd3 {[%clk 0:02:32.5]} 16... Na5
{[%clk 0:02:10.4]} 17. Bc2 {[%clk 0:02:16.5]} 17... Nc4 {[%clk 0:02:06.6]} 18.
b3 {[%clk 0:02:10.7]} 18... Nd6 {[%clk 0:02:03.6]} 19. Nb1 {[%clk 0:01:44.6]}
19... a5 {[%clk 0:01:59.5]} 20. Bd3 {[%clk 0:01:42.5]} 20... Nd5 {[%clk
0:01:57]} 21. Bxa5 {[%clk 0:01:25.8]} 21... Bxe3 {[%clk 0:01:48.2]} 22. fxe3
{[%clk 0:01:22.6]} 22... bxa5 {[%clk 0:01:47.7]} 23. Rc5 {[%clk 0:01:19.4]}
23... Nb4 {[%clk 0:01:43.8]} 24. Bc4 {[%clk 0:00:57.8]} 24... Nxc4 {[%clk
0:01:05.9]} 25. bxc4 {[%clk 0:00:58.7]} 25... Rc8 {[%clk 0:00:31.2]} 26. Rxc8
{[%clk 0:00:39.5]} 26... Bxc8 {[%clk 0:00:32.1]} 27. Nbd2 {[%clk 0:00:37.7]}
27... Bd7 {[%clk 0:00:24.8]} 28. Nb3 {[%clk 0:00:36.4]} 28... Bxa4 {[%clk
0:00:23.3]} 29. Nxa5 {[%clk 0:00:36.5]} 29... Kd6 {[%clk 0:00:23.5]} 30. Nb7+
{[%clk 0:00:34.3]} 30... Kc7 {[%clk 0:00:21.1]} 31. Nc5 {[%clk 0:00:34.2]} 31...
Bc6 {[%clk 0:00:20.5]} 32. Ne5 {[%clk 0:00:31.9]} 32... Be8 {[%clk 0:00:20.1]}
33. Ncd3 {[%clk 0:00:28.9]} 33... Na6 {[%clk 0:00:19.3]} 34. h4 {[%clk
0:00:27.4]} 34... f6 {[%clk 0:00:18.9]} 35. Nf3 {[%clk 0:00:27.5]} 35... e5
{[%clk 0:00:19.2]} 36. Nd2 {[%clk 0:00:26.1]} 36... Bh5+ {[%clk 0:00:18.7]} 37.
Kf2 {[%clk 0:00:25.4]} 37... Bf7 {[%clk 0:00:18.9]} 38. g4 {[%clk 0:00:24.6]}
38... Nb8 {[%clk 0:00:19]} 39. e4 {[%clk 0:00:23.7]} 39... Nd7 {[%clk
0:00:18.1]} 40. Ke3 {[%clk 0:00:23.8]} 40... Nb6 {[%clk 0:00:16.3]} 41. Nb2
{[%clk 0:00:16.8]} 41... Kc6 {[%clk 0:00:15.4]} 42. g5 {[%clk 0:00:17.2]} 42...
Kc5 {[%clk 0:00:15.2]} 43. gxf6 {[%clk 0:00:17.3]} 43... gxf6 {[%clk 0:00:15.2]}
44. Nd3+ {[%clk 0:00:17.8]} 44... Kc6 {[%clk 0:00:15.7]} 45. Nb2 {[%clk
0:00:18.3]} 45... h5 {[%clk 0:00:13.4]} 46. Nd3 {[%clk 0:00:18.1]} 46... Nxc4+
{[%clk 0:00:11.7]} 47. Nxc4 {[%clk 0:00:17.8]} 47... Bxc4 {[%clk 0:00:12.6]} 48.
Ne1 {[%clk 0:00:17.1]} 48... Kc5 {[%clk 0:00:11.8]} 49. Nf3 {[%clk 0:00:17.4]}
49... Kb4 {[%clk 0:00:12.1]} 50. Nd2 {[%clk 0:00:17.6]} 50... Kc3 {[%clk
0:00:12.3]} 51. Nf3 {[%clk 0:00:17.3]} 51... Kc2 {[%clk 0:00:12.4]} 52. Ne1+
{[%clk 0:00:17.1]} 52... Kd1 {[%clk 0:00:12]} 53. Nf3 {[%clk 0:00:17.8]} 53...
Be2 {[%clk 0:00:12.1]} 54. Nd2 {[%clk 0:00:17.8]} 54... Ke1 {[%clk 0:00:11.2]}
55. Nb3 {[%clk 0:00:17.1]} 55... Bc4 {[%clk 0:00:10.1]} 56. Nc5 {[%clk
0:00:17.2]} 56... Bb5 {[%clk 0:00:08]} 57. Kf3 {[%clk 0:00:16.5]} 57... Kf1
{[%clk 0:00:06.5]} 58. Ne6 {[%clk 0:00:12.9]} 58... Be2+ {[%clk 0:00:06.3]} 59.
Ke3 {[%clk 0:00:12.6]} 59... Bg4 {[%clk 0:00:06]} 60. Ng7 {[%clk 0:00:12.6]}
60... Kg2 {[%clk 0:00:05.4]} 61. Ne8 {[%clk 0:00:13.2]} 61... Kg3 {[%clk
0:00:04.6]} 62. Nxf6 {[%clk 0:00:13.7]} 62... Kxh4 {[%clk 0:00:05]} 63. Kf2
{[%clk 0:00:14.1]} 63... Kg5 {[%clk 0:00:04.9]} 64. Nd5 {[%clk 0:00:14.3]} 64...
h4 {[%clk 0:00:05.4]} 65. Ne3 {[%clk 0:00:14]} 65... Be6 {[%clk 0:00:03.2]} 66.
Kf3 {[%clk 0:00:13.5]} 66... Bf7 {[%clk 0:00:03.7]} 67. Nf1 {[%clk 0:00:11.5]}
67... Bh5+ {[%clk 0:00:03.8]} 68. Ke3 {[%clk 0:00:11.6]} 68... Kg4 {[%clk
0:00:02.9]} 69. Kf2 {[%clk 0:00:12]} 69... Kh3 {[%clk 0:00:03]} 70. Ne3 {[%clk
0:00:11.6]} 70... Bg6 {[%clk 0:00:03.4]} 71. Nc4 {[%clk 0:00:11.7]} 71... Bxe4
{[%clk 0:00:02.1]} 72. Nxe5 {[%clk 0:00:12.3]} 72... Bd5 {[%clk 0:00:02.6]} 73.
Ng6 {[%clk 0:00:12.5]} 73... Kg4 {[%clk 0:00:01.9]} 74. Nxh4 {[%clk 0:00:13.4]}
1/2-1/2

[Event "*** Titled Tuesday Blitz"]
[Site "Chess.com"]
[Date "2021.03.02"]
[Round "4"]
[White "Aradhya2000"]
[Black "stepakyedael"]
[Result "1-0"]
[WhiteElo "2520"]
[BlackElo "2330"]
[TimeControl "180+1"]
[EndTime "10:41:03 PST"]
[Termination "Aradhya2000 won on time"]

1. d4 {[%clk 0:03:00.9]} 1... Nf6 {[%clk 0:02:58.6]} 2. c4 {[%clk 0:03:01.4]}
2... g6 {[%clk 0:02:58.6]} 3. g3 {[%clk 0:03:01.2]} 3... Bg7 {[%clk 0:02:58.7]}
4. Bg2 {[%clk 0:03:01.8]} 4... O-O {[%clk 0:02:59.2]} 5. Nc3 {[%clk 0:03:02.4]}
5... d6 {[%clk 0:02:59.3]} 6. Nf3 {[%clk 0:03:03]} 6... Nc6 {[%clk 0:02:59.1]}
7. O-O {[%clk 0:03:02.4]} 7... Bf5 {[%clk 0:02:59]} 8. Bg5 {[%clk 0:03:00]} 8...
Ne4 {[%clk 0:02:58]} 9. Nxe4 {[%clk 0:02:58.5]} 9... Bxe4 {[%clk 0:02:58]} 10.
d5 {[%clk 0:02:57.8]} 10... Bxf3 {[%clk 0:02:47.5]} 11. exf3 {[%clk 0:02:57.4]}
11... Na5 {[%clk 0:02:38.8]} 12. Qe2 {[%clk 0:02:54.1]} 12... b6 {[%clk
0:02:29.6]} 13. Bxe7 {[%clk 0:02:52]} 13... Re8 {[%clk 0:02:26.9]} 14. Bxd8
{[%clk 0:02:40.9]} 14... Rxe2 {[%clk 0:02:24.8]} 15. Bxc7 {[%clk 0:02:41.3]}
15... Bxb2 {[%clk 0:02:09.6]} 16. Rae1 {[%clk 0:02:39.8]} 16... Rxe1 {[%clk
0:01:59.3]} 17. Rxe1 {[%clk 0:02:40.7]} 17... Nxc4 {[%clk 0:01:59]} 18. Bf1
{[%clk 0:02:03.1]} 18... b5 {[%clk 0:01:44]} 19. Re4 {[%clk 0:01:47]} 19... f5
{[%clk 0:01:16.4]} 20. Re6 {[%clk 0:01:32.3]} 20... Ba3 {[%clk 0:01:00.5]} 21.
Bxc4 {[%clk 0:01:13.5]} 21... bxc4 {[%clk 0:01:00.4]} 22. Bxd6 {[%clk
0:01:14.1]} 22... Bb2 {[%clk 0:00:58.7]} 23. Bb4 {[%clk 0:01:04.9]} 23... Rd8
{[%clk 0:00:47.8]} 24. d6 {[%clk 0:00:34.6]} 24... c3 {[%clk 0:00:43.7]} 25. Re2
{[%clk 0:00:34.1]} 25... Kf7 {[%clk 0:00:40.7]} 26. Rc2 {[%clk 0:00:26.1]} 26...
a5 {[%clk 0:00:38.9]} 27. Bxc3 {[%clk 0:00:25.3]} 27... Bxc3 {[%clk 0:00:37.8]}
28. Rxc3 {[%clk 0:00:26.2]} 28... Rxd6 {[%clk 0:00:37.6]} 29. Rc7+ {[%clk
0:00:26.4]} 29... Kf6 {[%clk 0:00:35]} 30. Ra7 {[%clk 0:00:19.2]} 30... Rd5
{[%clk 0:00:30.8]} 31. h4 {[%clk 0:00:18.1]} 31... h5 {[%clk 0:00:29.8]} 32. f4
{[%clk 0:00:18.3]} 32... Rb5 {[%clk 0:00:27.6]} 33. Kf1 {[%clk 0:00:18.5]} 33...
Rd5 {[%clk 0:00:24.3]} 34. Ke2 {[%clk 0:00:18.8]} 34... Rb5 {[%clk 0:00:23.8]}
35. Kd3 {[%clk 0:00:19]} 35... Rd5+ {[%clk 0:00:23.7]} 36. Kc3 {[%clk
0:00:18.8]} 36... Rc5+ {[%clk 0:00:23.4]} 37. Kd3 {[%clk 0:00:19.1]} 37... Rd5+
{[%clk 0:00:23.5]} 38. Ke3 {[%clk 0:00:19.5]} 38... Rb5 {[%clk 0:00:22.9]} 39.
a4 {[%clk 0:00:19.4]} 39... Rb3+ {[%clk 0:00:21.6]} 40. Kd4 {[%clk 0:00:18.3]}
40... Rb2 {[%clk 0:00:21.3]} 41. Ra6+ {[%clk 0:00:16.9]} 41... Kg7 {[%clk
0:00:20]} 42. Ke3 {[%clk 0:00:17]} 42... Rb3+ {[%clk 0:00:19.6]} 43. Ke2 {[%clk
0:00:17.3]} 43... Rb2+ {[%clk 0:00:19.9]} 44. Kf3 {[%clk 0:00:17.4]} 44... Rb3+
{[%clk 0:00:20]} 45. Kg2 {[%clk 0:00:17.8]} 45... Ra3 {[%clk 0:00:17.5]} 46.
Rxa5 {[%clk 0:00:18.1]} 46... Kh6 {[%clk 0:00:17.6]} 47. Ra7 {[%clk 0:00:17.6]}
47... Ra2 {[%clk 0:00:16.7]} 48. a5 {[%clk 0:00:17]} 48... Ra3 {[%clk
0:00:16.5]} 49. Ra8 {[%clk 0:00:15.5]} 49... Kh7 {[%clk 0:00:15.2]} 50. a6
{[%clk 0:00:15.8]} 50... Kg7 {[%clk 0:00:15]} 51. a7 {[%clk 0:00:15]} 51... Kh7
{[%clk 0:00:15.2]} 52. Kf1 {[%clk 0:00:15.3]} 52... Kg7 {[%clk 0:00:14.3]} 53.
Ke2 {[%clk 0:00:15.7]} 53... Kh7 {[%clk 0:00:14.2]} 54. Kd2 {[%clk 0:00:16.1]}
54... Kg7 {[%clk 0:00:14.5]} 55. Kc2 {[%clk 0:00:16.5]} 55... Kh7 {[%clk
0:00:14.7]} 56. Kb2 {[%clk 0:00:17]} 56... Ra6 {[%clk 0:00:14.7]} 57. Kb3 {[%clk
0:00:16.8]} 57... Rb6+ {[%clk 0:00:14.7]} 58. Kc4 {[%clk 0:00:16.7]} 58... Ra6
{[%clk 0:00:14.7]} 59. Kc5 {[%clk 0:00:16.7]} 59... Ra2 {[%clk 0:00:13.7]} 60.
Kd6 {[%clk 0:00:16.8]} 60... Rd2+ {[%clk 0:00:13.3]} 61. Ke7 {[%clk 0:00:13.9]}
61... Re2+ {[%clk 0:00:13]} 62. Kf6 {[%clk 0:00:13.6]} 62... Ra2 {[%clk
0:00:11.1]} 63. Re8 {[%clk 0:00:13.5]} 63... Ra6+ {[%clk 0:00:06.6]} 64. Re6
{[%clk 0:00:13.4]} 64... Rxa7 {[%clk 0:00:05.4]} 65. Re7+ {[%clk 0:00:13.5]}
65... Rxe7 {[%clk 0:00:02.2]} 66. Kxe7 {[%clk 0:00:14.4]} 66... Kg7 {[%clk
0:00:02.1]} 67. f3 {[%clk 0:00:14.5]} 1-0

[Event "*** Titled Tuesday Blitz"]
[Site "Chess.com"]
[Date "2021.03.02"]
[Round "4"]
[White "Gahan-MG"]
[Black "ama18"]
[Result "1-0"]
[WhiteElo "2637"]
[BlackElo "2473"]
[TimeControl "180+1"]
[EndTime "10:41:04 PST"]
[Termination "Gahan-MG won on time"]

1. e4 {[%clk 0:03:00.9]} 1... c5 {[%clk 0:02:49.9]} 2. c3 {[%clk 0:02:59.7]}
2... d5 {[%clk 0:02:49.9]} 3. exd5 {[%clk 0:02:59.8]} 3... Qxd5 {[%clk
0:02:50.8]} 4. d4 {[%clk 0:03:00.3]} 4... g6 {[%clk 0:02:51.3]} 5. Nf3 {[%clk
0:03:00.2]} 5... Bg7 {[%clk 0:02:51.7]} 6. dxc5 {[%clk 0:02:57.4]} 6... Qxc5
{[%clk 0:02:48.5]} 7. Be3 {[%clk 0:02:57.1]} 7... Qc7 {[%clk 0:02:48.4]} 8. Nbd2
{[%clk 0:02:55.9]} 8... Nh6 {[%clk 0:02:47.6]} 9. Be2 {[%clk 0:02:45.5]} 9...
Nf5 {[%clk 0:02:47.3]} 10. Qa4+ {[%clk 0:02:39]} 10... Bd7 {[%clk 0:02:42.9]}
11. Qc4 {[%clk 0:02:29.1]} 11... Nc6 {[%clk 0:01:57.7]} 12. Bf4 {[%clk
0:02:23.3]} 12... e5 {[%clk 0:01:53]} 13. Bg3 {[%clk 0:02:20.8]} 13... O-O
{[%clk 0:01:46.8]} 14. O-O {[%clk 0:02:19.3]} 14... Nxg3 {[%clk 0:01:43.5]} 15.
hxg3 {[%clk 0:02:19]} 15... Kh8 {[%clk 0:01:41.6]} 16. Rfe1 {[%clk 0:02:16.4]}
16... h6 {[%clk 0:01:36.9]} 17. Qh4 {[%clk 0:02:09.8]} 17... f5 {[%clk
0:01:30.6]} 18. Bc4 {[%clk 0:02:05.3]} 18... e4 {[%clk 0:01:10]} 19. Ng5 {[%clk
0:01:57.3]} 19... Ne5 {[%clk 0:01:09.7]} 20. Ne6 {[%clk 0:01:45.5]} 20... Bxe6
{[%clk 0:01:05.3]} 21. Bxe6 {[%clk 0:01:46.4]} 21... Qd6 {[%clk 0:01:03.2]} 22.
Nxe4 {[%clk 0:01:25.4]} 22... fxe4 {[%clk 0:00:58.2]} 23. Bb3 {[%clk 0:01:22.6]}
23... Nd3 {[%clk 0:00:46.4]} 24. Re2 {[%clk 0:01:21.7]} 24... Rae8 {[%clk
0:00:41.1]} 25. Rd1 {[%clk 0:01:17.4]} 25... Qf6 {[%clk 0:00:26.3]} 26. Qxf6
{[%clk 0:01:03.2]} 26... Bxf6 {[%clk 0:00:27.2]} 27. Bd5 {[%clk 0:01:03.5]}
27... Nc5 {[%clk 0:00:27.3]} 28. b4 {[%clk 0:01:02.5]} 28... Na4 {[%clk
0:00:26.8]} 29. Rxe4 {[%clk 0:00:44.9]} 29... Rxe4 {[%clk 0:00:14.6]} 30. Bxe4
{[%clk 0:00:45.8]} 30... Nxc3 {[%clk 0:00:15]} 31. Re1 {[%clk 0:00:46.6]} 31...
Re8 {[%clk 0:00:15]} 32. f3 {[%clk 0:00:47]} 32... Bd4+ {[%clk 0:00:14]} 33. Kh2
{[%clk 0:00:46.5]} 33... Nxa2 {[%clk 0:00:14.1]} 34. Rd1 {[%clk 0:00:44.2]}
34... Bg7 {[%clk 0:00:11.8]} 35. Bxg6 {[%clk 0:00:41.9]} 35... Rb8 {[%clk
0:00:10.3]} 36. Rb1 {[%clk 0:00:31.9]} 36... Nc3 {[%clk 0:00:10.4]} 37. Rb3
{[%clk 0:00:32]} 37... Nb5 {[%clk 0:00:09.9]} 38. Be4 {[%clk 0:00:31]} 38... b6
{[%clk 0:00:09.6]} 39. Rd3 {[%clk 0:00:30.2]} 39... a5 {[%clk 0:00:09]} 40. bxa5
{[%clk 0:00:22.3]} 40... bxa5 {[%clk 0:00:09.9]} 41. Bc6 {[%clk 0:00:21.1]}
41... Nd4 {[%clk 0:00:09.8]} 42. Bd7 {[%clk 0:00:19.6]} 42... Rb7 {[%clk
0:00:09.5]} 43. Be8 {[%clk 0:00:19.4]} 43... Re7 {[%clk 0:00:09.6]} 44. Bg6
{[%clk 0:00:18.4]} 44... Rb7 {[%clk 0:00:08.5]} 45. Ra3 {[%clk 0:00:18.5]} 45...
Ra7 {[%clk 0:00:08.8]} 46. Ra4 {[%clk 0:00:18.1]} 46... Kg8 {[%clk 0:00:08.5]}
47. f4 {[%clk 0:00:18.1]} 47... Kf8 {[%clk 0:00:08.9]} 48. g4 {[%clk 0:00:18.5]}
48... Nc6 {[%clk 0:00:08.3]} 49. Be4 {[%clk 0:00:18]} 49... Nb4 {[%clk
0:00:08.5]} 50. Kh3 {[%clk 0:00:17]} 50... Ke7 {[%clk 0:00:08.9]} 51. Kh4 {[%clk
0:00:17.2]} 51... Kd6 {[%clk 0:00:08.3]} 52. g5 {[%clk 0:00:17.6]} 52... hxg5+
{[%clk 0:00:08.1]} 53. Kxg5 {[%clk 0:00:18.5]} 53... Ke7 {[%clk 0:00:07.9]} 54.
g4 {[%clk 0:00:18.7]} 54... Bf6+ {[%clk 0:00:08.3]} 55. Kg6 {[%clk 0:00:18]}
55... Ra6 {[%clk 0:00:06.9]} 56. g5 {[%clk 0:00:17.1]} 56... Bc3+ {[%clk
0:00:06.5]} 57. Kh7 {[%clk 0:00:15.7]} 57... Kf8 {[%clk 0:00:06.7]} 58. f5
{[%clk 0:00:15.1]} 58... Ra7+ {[%clk 0:00:06.4]} 59. Kg6 {[%clk 0:00:15.5]}
59... Ra6+ {[%clk 0:00:05.8]} 60. f6 {[%clk 0:00:15.4]} 60... Ra7 {[%clk
0:00:05.1]} 61. Ra3 {[%clk 0:00:15.3]} 61... Bd4 {[%clk 0:00:05.3]} 62. Rh3
{[%clk 0:00:14.8]} 62... Kg8 {[%clk 0:00:03.3]} 63. Bf5 {[%clk 0:00:11.7]} 63...
Ra6 {[%clk 0:00:02.8]} 64. Rh4 {[%clk 0:00:09.7]} 64... Bc5 {[%clk 0:00:01.8]}
65. Rc4 {[%clk 0:00:09.5]} 65... Bf8 {[%clk 0:00:01.5]} 66. Re4 {[%clk
0:00:08.1]} 66... Ra7 {[%clk 0:00:01.1]} 67. Be6+ {[%clk 0:00:08.4]} 1-0

[Event "*** Titled Tuesday Blitz"]
[Site "Chess.com"]
[Date "2021.03.02"]
[Round "4"]
[White "chessprincesa1"]
[Black "Grandmaster1369"]
[Result "0-1"]
[WhiteElo "2233"]
[BlackElo "2427"]
[TimeControl "180+1"]
[EndTime "10:41:05 PST"]
[Termination "Grandmaster1369 won by resignation"]

1. d4 {[%clk 0:03:00.9]} 1... Nf6 {[%clk 0:02:59.1]} 2. c4 {[%clk 0:03:01]} 2...
e6 {[%clk 0:03:00]} 3. Nc3 {[%clk 0:03:00.7]} 3... c5 {[%clk 0:03:00]} 4. d5
{[%clk 0:03:00.4]} 4... exd5 {[%clk 0:03:00.9]} 5. cxd5 {[%clk 0:03:01.3]} 5...
d6 {[%clk 0:03:01.4]} 6. e4 {[%clk 0:03:00.7]} 6... g6 {[%clk 0:03:01.2]} 7. Bf4
{[%clk 0:03:00.6]} 7... Bg7 {[%clk 0:02:58.3]} 8. h3 {[%clk 0:03:00.4]} 8... O-O
{[%clk 0:02:58]} 9. Qc2 {[%clk 0:02:51.7]} 9... Re8 {[%clk 0:02:55]} 10. Be2
{[%clk 0:02:47.1]} 10... Qa5 {[%clk 0:02:32.4]} 11. Bd2 {[%clk 0:02:42.5]} 11...
a6 {[%clk 0:02:31.9]} 12. a4 {[%clk 0:02:40.1]} 12... Qd8 {[%clk 0:02:27.5]} 13.
Nf3 {[%clk 0:02:39.8]} 13... Nbd7 {[%clk 0:02:25.8]} 14. O-O {[%clk 0:02:37.5]}
14... Ne5 {[%clk 0:02:26.2]} 15. Nxe5 {[%clk 0:02:30.6]} 15... Rxe5 {[%clk
0:02:27.1]} 16. f4 {[%clk 0:02:29.2]} 16... Re8 {[%clk 0:02:27.7]} 17. Rae1
{[%clk 0:02:27.4]} 17... b6 {[%clk 0:01:56.7]} 18. Bc4 {[%clk 0:02:12.8]} 18...
Rb8 {[%clk 0:01:52.8]} 19. Kh1 {[%clk 0:02:10.8]} 19... Nh5 {[%clk 0:01:51.2]}
20. Re3 {[%clk 0:01:57.9]} 20... f5 {[%clk 0:01:49.2]} 21. e5 {[%clk 0:01:37.8]}
21... dxe5 {[%clk 0:01:46.7]} 22. fxe5 {[%clk 0:01:26.8]} 22... Bxe5 {[%clk
0:01:39.8]} 23. d6+ {[%clk 0:01:00.3]} 23... Kf8 {[%clk 0:01:31.1]} 24. Rfe1
{[%clk 0:00:59]} 24... Qf6 {[%clk 0:01:16.9]} 25. Nd5 {[%clk 0:00:51.2]} 25...
Qxd6 {[%clk 0:01:16.8]} 26. Qd3 {[%clk 0:00:27.1]} 26... Bb7 {[%clk 0:01:01.2]}
27. Rxe5 {[%clk 0:00:17.5]} 27... Rxe5 {[%clk 0:01:01.1]} 28. Bh6+ {[%clk
0:00:17.3]} 28... Ng7 {[%clk 0:00:56.9]} 29. Rxe5 {[%clk 0:00:15.9]} 29... Qxe5
{[%clk 0:00:56.7]} 30. Nxb6 {[%clk 0:00:15.4]} 30... Bxg2+ {[%clk 0:00:36.9]}
31. Kxg2 {[%clk 0:00:15]} 31... Qxb2+ {[%clk 0:00:37.5]} 32. Kg3 {[%clk
0:00:13.1]} 32... Qxb6 {[%clk 0:00:38]} 33. Qd7 {[%clk 0:00:11.3]} 33... Qf6
{[%clk 0:00:25.6]} 34. Bxg7+ {[%clk 0:00:10.9]} 34... Qxg7 {[%clk 0:00:26.5]}
35. Qd6+ {[%clk 0:00:11.3]} 35... Qe7 {[%clk 0:00:26.4]} 36. Qxb8+ {[%clk
0:00:11.4]} 36... Kg7 {[%clk 0:00:26.9]} 37. Qf4 {[%clk 0:00:08]} 37... Qe1+
{[%clk 0:00:23.3]} 38. Kh2 {[%clk 0:00:08.2]} 38... Qb4 {[%clk 0:00:20.5]} 39.
Qe5+ {[%clk 0:00:07.3]} 39... Kh6 {[%clk 0:00:20.5]} 40. Qe3+ {[%clk 0:00:07.5]}
40... Kg7 {[%clk 0:00:15.4]} 41. Bxa6 {[%clk 0:00:05.6]} 41... Qb8+ {[%clk
0:00:12.4]} 42. Kg1 {[%clk 0:00:03.5]} 42... Qb1+ {[%clk 0:00:11.8]} 43. Kf2
{[%clk 0:00:03.8]} 43... Qa2+ {[%clk 0:00:12.3]} 44. Kg3 {[%clk 0:00:04.2]}
44... Qxa4 {[%clk 0:00:12.9]} 45. Bd3 {[%clk 0:00:04]} 45... Qa7 {[%clk
0:00:10.4]} 46. Qe5+ {[%clk 0:00:03.8]} 46... Kh6 {[%clk 0:00:09.7]} 47. h4
{[%clk 0:00:04.2]} 47... Qa3 {[%clk 0:00:07]} 48. Qe3+ {[%clk 0:00:01.9]} 48...
Kg7 {[%clk 0:00:07.6]} 49. Qe5+ {[%clk 0:00:02.3]} 49... Kf8 {[%clk 0:00:08]}
50. Qd6+ {[%clk 0:00:02.3]} 50... Kg7 {[%clk 0:00:08]} 51. Kf4 {[%clk
0:00:02.8]} 51... Qc1+ {[%clk 0:00:04.2]} 52. Ke5 {[%clk 0:00:03.1]} 52... Qe3+
{[%clk 0:00:03.5]} 53. Kd5 {[%clk 0:00:01.1]} 53... Qxd3+ {[%clk 0:00:04]} 54.
Kxc5 {[%clk 0:00:02]} 54... Qxd6+ {[%clk 0:00:04.9]} 55. Kxd6 {[%clk 0:00:02.9]}
55... Kf6 {[%clk 0:00:05.5]} 56. Kd7 {[%clk 0:00:02.9]} 56... h6 {[%clk
0:00:06.4]} 57. Ke8 {[%clk 0:00:02.8]} 57... f4 {[%clk 0:00:07.3]} 58. Kf8
{[%clk 0:00:03.6]} 58... f3 {[%clk 0:00:08.2]} 59. Kg8 {[%clk 0:00:04.4]} 59...
f2 {[%clk 0:00:09.1]} 60. Kh7 {[%clk 0:00:05.2]} 60... f1=Q {[%clk 0:00:10]} 61.
Kxh6 {[%clk 0:00:05.9]} 61... Qf2 {[%clk 0:00:10.9]} 62. Kh7 {[%clk 0:00:05.6]}
62... Qxh4+ {[%clk 0:00:11.3]} 63. Kg8 {[%clk 0:00:06.5]} 63... Qf4 {[%clk
0:00:08.5]} 64. Kh8 {[%clk 0:00:06.1]} 64... g5 {[%clk 0:00:09.4]} 65. Kg8
{[%clk 0:00:06.8]} 65... g4 {[%clk 0:00:10.3]} 66. Kh7 {[%clk 0:00:07.3]} 66...
g3 {[%clk 0:00:11.2]} 0-1